[Event "*** Titled Tuesday 3|2 Blitz"]
[Site "Chess.com"]
[Date "2016.07.05"]
[Round "1"]
[White "LyonBeast"]
[Black "yopino"]
[Result "0-1"]
[WhiteElo "2734"]
[BlackElo "2378"]
[TimeControl "180+2"]
[EndTime "11:09:34 PDT"]
[Termination "yopino won by resignation"]

1. e4 {[%clk 0:03:01.1]} 1... c5 {[%clk 0:03:01.1]} 2. Nf3 {[%clk 0:02:55.2]}
2... g6 {[%clk 0:03:01.9]} 3. c3 {[%clk 0:02:55.7]} 3... Bg7 {[%clk 0:03:01.4]}
4. d4 {[%clk 0:02:57]} 4... cxd4 {[%clk 0:03:00.4]} 5. cxd4 {[%clk 0:02:58.9]}
5... d5 {[%clk 0:03:01.9]} 6. e5 {[%clk 0:03:00.2]} 6... Nh6 {[%clk 0:02:50.1]}
7. Bb5+ {[%clk 0:02:55.6]} 7... Nc6 {[%clk 0:02:47.2]} 8. O-O {[%clk 0:02:54.5]}
8... O-O {[%clk 0:02:37]} 9. Nc3 {[%clk 0:02:48.8]} 9... Bg4 {[%clk 0:02:33.3]}
10. Bxc6 {[%clk 0:02:49.6]} 10... bxc6 {[%clk 0:02:33.1]} 11. h3 {[%clk
0:02:50.8]} 11... Bxf3 {[%clk 0:02:28.4]} 12. Qxf3 {[%clk 0:02:52.7]} 12... f6
{[%clk 0:02:08.5]} 13. exf6 {[%clk 0:02:52.6]} 13... Rxf6 {[%clk 0:02:03.8]} 14.
Qd3 {[%clk 0:02:51.6]} 14... Nf5 {[%clk 0:02:03.8]} 15. g4 {[%clk 0:02:26.7]}
15... Nd6 {[%clk 0:02:04.5]} 16. Bg5 {[%clk 0:02:23.7]} 16... Rf7 {[%clk
0:02:01.2]} 17. Rae1 {[%clk 0:02:09.7]} 17... Rb8 {[%clk 0:02:02.2]} 18. b3
{[%clk 0:02:09.6]} 18... a5 {[%clk 0:01:56.5]} 19. Re6 {[%clk 0:02:04.3]} 19...
Rb4 {[%clk 0:01:50.5]} 20. Qe2 {[%clk 0:02:05]} 20... Rb7 {[%clk 0:01:30.9]} 21.
Rd1 {[%clk 0:02:00.6]} 21... Ra7 {[%clk 0:01:26.1]} 22. Bh4 {[%clk 0:01:55.2]}
22... Qd7 {[%clk 0:01:23.2]} 23. Re3 {[%clk 0:01:47.8]} 23... Bh6 {[%clk
0:01:24]} 24. Rf3 {[%clk 0:01:45.2]} 24... Rxf3 {[%clk 0:01:23.7]} 25. Qxf3
{[%clk 0:01:47.1]} 25... e6 {[%clk 0:01:13.4]} 26. Bg3 {[%clk 0:01:46.6]} 26...
Ra8 {[%clk 0:01:13.5]} 27. Na4 {[%clk 0:01:45.6]} 27... Rf8 {[%clk 0:01:10.5]}
28. Qe2 {[%clk 0:01:20.2]} 28... Ne4 {[%clk 0:01:11.3]} 29. Nc5 {[%clk
0:01:21.5]} 29... Nxc5 {[%clk 0:01:07.8]} 30. dxc5 {[%clk 0:01:23.4]} 30... Bf4
{[%clk 0:01:08.6]} 31. Rd3 {[%clk 0:01:18.2]} 31... Bxg3 {[%clk 0:01:05.5]} 32.
Rxg3 {[%clk 0:01:20.1]} 32... d4 {[%clk 0:01:01.8]} 33. Qe4 {[%clk 0:00:54]}
33... Qd5 {[%clk 0:01:02.3]} 34. Qxd5 {[%clk 0:00:55]} 34... exd5 {[%clk
0:01:02]} 35. Rd3 {[%clk 0:00:55.3]} 35... Rf4 {[%clk 0:00:58.1]} 36. f3 {[%clk
0:00:55.8]} 36... h5 {[%clk 0:00:49.5]} 37. Kf2 {[%clk 0:00:54.1]} 37... h4
{[%clk 0:00:47.1]} 38. a3 {[%clk 0:00:55.3]} 38... Kf7 {[%clk 0:00:43.3]} 39. b4
{[%clk 0:00:56.2]} 39... axb4 {[%clk 0:00:43.5]} 40. axb4 {[%clk 0:00:58.1]}
40... Ke6 {[%clk 0:00:44.2]} 41. Ke2 {[%clk 0:00:58.9]} 41... Ke5 {[%clk
0:00:45.1]} 42. b5 {[%clk 0:00:16.7]} 42... cxb5 {[%clk 0:00:44.5]} 43. Rb3
{[%clk 0:00:17.7]} 43... d3+ {[%clk 0:00:38.2]} 44. Rxd3 {[%clk 0:00:18.6]}
44... Rc4 {[%clk 0:00:37.7]} 45. Re3+ {[%clk 0:00:18.2]} 45... Kf4 {[%clk
0:00:33.5]} 46. Re6 {[%clk 0:00:19.2]} 46... Rc2+ {[%clk 0:00:33.5]} 47. Kd3
{[%clk 0:00:20.3]} 47... Rxc5 {[%clk 0:00:34.2]} 48. Rxg6 {[%clk 0:00:21.6]}
48... Kxf3 {[%clk 0:00:34.8]} 49. g5 {[%clk 0:00:22.7]} 49... Rc4 {[%clk
0:00:33]} 50. Rf6+ {[%clk 0:00:23.4]} 50... Kg3 {[%clk 0:00:33.4]} 51. g6 {[%clk
0:00:25.3]} 51... Kxh3 {[%clk 0:00:34.3]} 52. Rf3+ {[%clk 0:00:25.1]} 52... Kg2
{[%clk 0:00:33.5]} 53. Re3 {[%clk 0:00:20.4]} 53... Rg4 {[%clk 0:00:34]} 54.
Re2+ {[%clk 0:00:21.9]} 54... Kf3 {[%clk 0:00:34.7]} 55. Re3+ {[%clk 0:00:23.5]}
55... Kf4 {[%clk 0:00:35.2]} 56. Re6 {[%clk 0:00:23.5]} 56... h3 {[%clk
0:00:34.9]} 57. Kd4 {[%clk 0:00:22.5]} 57... h2 {[%clk 0:00:34.9]} 58. Re1
{[%clk 0:00:23.8]} 58... Kg3+ {[%clk 0:00:35.6]} 59. Kxd5 {[%clk 0:00:23.5]}
59... Rxg6 {[%clk 0:00:35.9]} 0-1

[Event "*** Titled Tuesday 3|2 Blitz"]
[Site "Chess.com"]
[Date "2016.07.05"]
[Round "1"]
[White "VSERGUEI"]
[Black "Makalexa"]
[Result "1-0"]
[WhiteElo "2497"]
[BlackElo "2154"]
[TimeControl "180+2"]
[EndTime "11:10:18 PDT"]
[Termination "VSERGUEI won by resignation"]

1. d4 {[%clk 0:03:01.9]} 1... Nf6 {[%clk 0:02:59]} 2. c4 {[%clk 0:03:02.8]} 2...
e6 {[%clk 0:02:57.6]} 3. Nc3 {[%clk 0:03:03.3]} 3... Bb4 {[%clk 0:02:58.3]} 4.
f3 {[%clk 0:03:04.6]} 4... d5 {[%clk 0:02:54.8]} 5. a3 {[%clk 0:03:04.9]} 5...
Bxc3+ {[%clk 0:02:55.3]} 6. bxc3 {[%clk 0:03:06.8]} 6... O-O {[%clk 0:02:54.6]}
7. cxd5 {[%clk 0:03:07.1]} 7... exd5 {[%clk 0:02:55.7]} 8. e3 {[%clk 0:03:08.1]}
8... c6 {[%clk 0:02:54.4]} 9. Bd3 {[%clk 0:03:08.5]} 9... Re8 {[%clk 0:02:52.8]}
10. Ne2 {[%clk 0:03:09.5]} 10... Nbd7 {[%clk 0:02:53.8]} 11. O-O {[%clk
0:03:09.7]} 11... Nf8 {[%clk 0:02:54.8]} 12. Ng3 {[%clk 0:03:08.7]} 12... g6
{[%clk 0:02:55.4]} 13. e4 {[%clk 0:03:09.1]} 13... Ne6 {[%clk 0:02:54]} 14. e5
{[%clk 0:02:56.9]} 14... Nd7 {[%clk 0:02:54.5]} 15. f4 {[%clk 0:02:57.5]} 15...
Ng7 {[%clk 0:02:46.2]} 16. f5 {[%clk 0:02:54.8]} 16... c5 {[%clk 0:02:47.5]} 17.
e6 {[%clk 0:02:50.8]} 17... fxe6 {[%clk 0:02:36.6]} 18. fxg6 {[%clk 0:02:50.6]}
18... hxg6 {[%clk 0:02:35.8]} 19. Bxg6 {[%clk 0:02:50.6]} 19... Rf8 {[%clk
0:02:36.8]} 20. Bh6 {[%clk 0:02:42.3]} 20... Rxf1+ {[%clk 0:02:33.2]} 21. Qxf1
{[%clk 0:02:41.7]} 21... Qf6 {[%clk 0:02:29.6]} 22. Qxf6 {[%clk 0:02:37.7]}
22... Nxf6 {[%clk 0:02:30.6]} 23. dxc5 {[%clk 0:02:32.9]} 23... Ng4 {[%clk
0:02:21.4]} 24. Bg5 {[%clk 0:02:25.4]} 24... Ne5 {[%clk 0:02:20.6]} 25. Bc2
{[%clk 0:02:23.7]} 25... Bd7 {[%clk 0:02:18]} 26. h3 {[%clk 0:01:55.8]} 26...
Bb5 {[%clk 0:02:04.9]} 27. a4 {[%clk 0:01:54.6]} 27... Bd3 {[%clk 0:02:03.7]}
28. Bd1 {[%clk 0:01:53.7]} 28... Rc8 {[%clk 0:02:02.7]} 29. Be3 {[%clk
0:01:52.9]} 29... Nd7 {[%clk 0:02:00.9]} 30. c6 {[%clk 0:01:48.6]} 30... Rxc6
{[%clk 0:01:57.1]} 31. Bxa7 {[%clk 0:01:48.2]} 31... Rxc3 {[%clk 0:01:55.8]} 32.
a5 {[%clk 0:01:46.4]} 32... e5 {[%clk 0:01:53.3]} 33. Ne2 {[%clk 0:01:28.4]}
33... Bxe2 {[%clk 0:01:43.3]} 34. Bxe2 {[%clk 0:01:28.5]} 34... Ne6 {[%clk
0:01:33.7]} 35. Rb1 {[%clk 0:01:16.8]} 35... Nec5 {[%clk 0:01:26.2]} 36. Bg4
{[%clk 0:01:16.1]} 36... Nf6 {[%clk 0:01:01.1]} 37. Rb5 {[%clk 0:01:14.9]} 37...
Nfe4 {[%clk 0:00:52.9]} 38. Bf3 {[%clk 0:01:08.9]} 38... d4 {[%clk 0:00:31.5]}
39. Bxc5 {[%clk 0:01:02.7]} 39... Nxc5 {[%clk 0:00:31.5]} 40. Bxb7 {[%clk
0:01:00.4]} 40... d3 {[%clk 0:00:30.9]} 41. Bf3 {[%clk 0:00:55.3]} 41... e4
{[%clk 0:00:31.2]} 42. a6 {[%clk 0:00:51.2]} 42... Nxa6 {[%clk 0:00:21.7]} 43.
Bxe4 {[%clk 0:00:51]} 43... d2 {[%clk 0:00:22.9]} 44. Bf3 {[%clk 0:00:46.4]}
44... Rxf3 {[%clk 0:00:22.3]} 45. Rd5 {[%clk 0:00:47.2]} 45... Rf6 {[%clk
0:00:19.8]} 46. Rxd2 {[%clk 0:00:47.8]} 46... Nc7 {[%clk 0:00:20.7]} 47. g3
{[%clk 0:00:46.9]} 47... Ne6 {[%clk 0:00:21.8]} 48. Kg2 {[%clk 0:00:47.9]} 48...
Ng5 {[%clk 0:00:22.7]} 49. h4 {[%clk 0:00:48.3]} 49... Nf7 {[%clk 0:00:23.6]}
50. Re2 {[%clk 0:00:47.4]} 50... Kg7 {[%clk 0:00:24.2]} 51. g4 {[%clk
0:00:48.6]} 51... Ne5 {[%clk 0:00:24.5]} 52. Rxe5 {[%clk 0:00:48.5]} 52... Rf8
{[%clk 0:00:21.1]} 53. Kg3 {[%clk 0:00:47.6]} 53... Kh7 {[%clk 0:00:16.1]} 54.
h5 {[%clk 0:00:48.4]} 54... Kh8 {[%clk 0:00:15.9]} 55. Kh4 {[%clk 0:00:49.3]}
55... Rg8 {[%clk 0:00:17.1]} 56. g5 {[%clk 0:00:48.8]} 56... Kh7 {[%clk
0:00:14.4]} 57. Re7+ {[%clk 0:00:49]} 57... Kh8 {[%clk 0:00:15.3]} 58. h6 {[%clk
0:00:50.1]} 58... Ra8 {[%clk 0:00:13.1]} 59. Kh5 {[%clk 0:00:50.9]} 59... Rb8
{[%clk 0:00:13.3]} 60. Ra7 {[%clk 0:00:51.2]} 60... Rc8 {[%clk 0:00:14.2]} 61.
Ra5 {[%clk 0:00:51.7]} 61... Rg8 {[%clk 0:00:13]} 62. g6 {[%clk 0:00:52.1]}
62... Rb8 {[%clk 0:00:12.9]} 63. h7 {[%clk 0:00:49.4]} 63... Kg7 {[%clk
0:00:11.4]} 64. Ra7+ {[%clk 0:00:49.4]} 64... Kh8 {[%clk 0:00:10.6]} 65. Kh6
{[%clk 0:00:49.2]} 65... Rg8 {[%clk 0:00:10.5]} 66. hxg8=Q+ {[%clk 0:00:49.1]}
1-0

[Event "*** Titled Tuesday 3|2 Blitz"]
[Site "Chess.com"]
[Date "2016.07.05"]
[Round "1"]
[White "olgerts_indricans"]
[Black "wonderfultime"]
[Result "0-1"]
[WhiteElo "2343"]
[BlackElo "2676"]
[TimeControl "180+2"]
[EndTime "11:10:23 PDT"]
[Termination "wonderfultime won by resignation"]

1. d4 {[%clk 0:02:58.8]} 1... d5 {[%clk 0:03:01]} 2. c4 {[%clk 0:02:59.1]} 2...
c6 {[%clk 0:03:02.4]} 3. Nf3 {[%clk 0:02:59.9]} 3... Nf6 {[%clk 0:03:04]} 4. Nc3
{[%clk 0:03:00.4]} 4... dxc4 {[%clk 0:03:05.2]} 5. a4 {[%clk 0:03:00.4]} 5...
Bf5 {[%clk 0:03:06.2]} 6. Ne5 {[%clk 0:03:00.5]} 6... Nbd7 {[%clk 0:03:07.5]} 7.
Nxc4 {[%clk 0:03:01.3]} 7... Nb6 {[%clk 0:03:09]} 8. Ne5 {[%clk 0:03:01.7]} 8...
a5 {[%clk 0:03:10.4]} 9. e3 {[%clk 0:03:00.4]} 9... g6 {[%clk 0:03:09.1]} 10.
Be2 {[%clk 0:03:01]} 10... Bg7 {[%clk 0:03:09.8]} 11. O-O {[%clk 0:03:01.7]}
11... O-O {[%clk 0:03:10.9]} 12. b3 {[%clk 0:03:02]} 12... Nfd7 {[%clk
0:03:01.6]} 13. Nxd7 {[%clk 0:02:46.5]} 13... Qxd7 {[%clk 0:02:59.8]} 14. Ba3
{[%clk 0:02:42.5]} 14... Rfd8 {[%clk 0:02:59.6]} 15. Rc1 {[%clk 0:02:36.2]}
15... Rac8 {[%clk 0:02:20.4]} 16. Bc5 {[%clk 0:02:33.8]} 16... Qc7 {[%clk
0:02:20.6]} 17. Bg4 {[%clk 0:02:22.7]} 17... Bxg4 {[%clk 0:02:02.3]} 18. Qxg4
{[%clk 0:02:22.9]} 18... e6 {[%clk 0:01:57.9]} 19. Rfd1 {[%clk 0:02:09.9]} 19...
Nd7 {[%clk 0:01:58.9]} 20. Be7 {[%clk 0:01:59.1]} 20... Re8 {[%clk 0:01:02.9]}
21. Nb5 {[%clk 0:01:43.9]} 21... Qb6 {[%clk 0:00:54.7]} 22. Bc5 {[%clk
0:01:43.4]} 22... Qa6 {[%clk 0:00:29.3]} 23. Nd6 {[%clk 0:01:42]} 23... b6
{[%clk 0:00:30.8]} 24. Ba3 {[%clk 0:01:37.8]} 24... Bf8 {[%clk 0:00:30]} 25. Qf4
{[%clk 0:01:05.7]} 25... Bxd6 {[%clk 0:00:28.6]} 26. Qxd6 {[%clk 0:01:07.6]}
26... Qb7 {[%clk 0:00:29.5]} 27. h4 {[%clk 0:01:03]} 27... h5 {[%clk 0:00:22.5]}
28. Rd2 {[%clk 0:00:56]} 28... b5 {[%clk 0:00:22.5]} 29. Rdc2 {[%clk 0:00:48.1]}
29... b4 {[%clk 0:00:21.8]} 30. Bb2 {[%clk 0:00:48.8]} 30... Nb8 {[%clk
0:00:22.8]} 31. Rc5 {[%clk 0:00:46]} 31... Red8 {[%clk 0:00:23.3]} 32. Qe5
{[%clk 0:00:37.1]} 32... Nd7 {[%clk 0:00:24.1]} 33. Qf4 {[%clk 0:00:35.4]} 33...
Nxc5 {[%clk 0:00:24.4]} 34. dxc5 {[%clk 0:00:37.3]} 34... Rd2 {[%clk 0:00:21.4]}
35. Qf6 {[%clk 0:00:38]} 35... Rxb2 {[%clk 0:00:22.6]} 36. Qxb2 {[%clk
0:00:39.9]} 36... Rd8 {[%clk 0:00:24.5]} 37. Qe5 {[%clk 0:00:39.1]} 37... Rd5
{[%clk 0:00:25.7]} 38. Qf4 {[%clk 0:00:38.8]} 38... Qd7 {[%clk 0:00:26.5]} 39.
Qb8+ {[%clk 0:00:39.2]} 39... Kg7 {[%clk 0:00:28.1]} 40. Qb6 {[%clk 0:00:40.2]}
40... Rd1+ {[%clk 0:00:26.8]} 41. Rxd1 {[%clk 0:00:41.6]} 41... Qxd1+ {[%clk
0:00:28.7]} 42. Kh2 {[%clk 0:00:43.5]} 42... Qxb3 {[%clk 0:00:30.5]} 43. Qxa5
{[%clk 0:00:44.1]} 43... Qc4 {[%clk 0:00:31.5]} 44. Qb6 {[%clk 0:00:45.3]} 44...
b3 {[%clk 0:00:31.4]} 45. a5 {[%clk 0:00:46]} 45... Qxh4+ {[%clk 0:00:32.6]} 46.
Kg1 {[%clk 0:00:46.6]} 46... Qc4 {[%clk 0:00:33.8]} 47. a6 {[%clk 0:00:47.1]}
47... Qc1+ {[%clk 0:00:35.4]} 48. Kh2 {[%clk 0:00:47.9]} 48... b2 {[%clk
0:00:37.3]} 49. a7 {[%clk 0:00:48.1]} 49... b1=Q {[%clk 0:00:38.9]} 50. Qxb1
{[%clk 0:00:48.6]} 50... Qxb1 {[%clk 0:00:40.8]} 51. a8=Q {[%clk 0:00:50.5]}
51... Qe4 {[%clk 0:00:40.8]} 52. Qa3 {[%clk 0:00:46.6]} 52... Qe5+ {[%clk
0:00:41.1]} 53. g3 {[%clk 0:00:46.9]} 53... h4 {[%clk 0:00:41.8]} 54. Kg2 {[%clk
0:00:46.8]} 54... hxg3 {[%clk 0:00:43.2]} 55. fxg3 {[%clk 0:00:48.1]} 55... g5
{[%clk 0:00:44.6]} 56. g4 {[%clk 0:00:46.3]} 56... Qe4+ {[%clk 0:00:45.7]} 57.
Kg3 {[%clk 0:00:47.1]} 57... Kg6 {[%clk 0:00:47]} 58. Qc3 {[%clk 0:00:46.7]}
58... f6 {[%clk 0:00:47.3]} 59. Qa3 {[%clk 0:00:45.8]} 59... f5 {[%clk
0:00:47.4]} 60. gxf5+ {[%clk 0:00:47]} 60... exf5 {[%clk 0:00:49.3]} 61. Qc3
{[%clk 0:00:44.8]} 61... Qg4+ {[%clk 0:00:47.4]} 62. Kf2 {[%clk 0:00:45.9]}
62... Qh4+ {[%clk 0:00:49]} 63. Kg2 {[%clk 0:00:46.2]} 63... Qe4+ {[%clk
0:00:50.1]} 64. Kf2 {[%clk 0:00:47.4]} 64... f4 {[%clk 0:00:50.4]} 65. exf4
{[%clk 0:00:46.6]} 65... Qxf4+ {[%clk 0:00:52.3]} 66. Kg2 {[%clk 0:00:47.2]}
66... Qe4+ {[%clk 0:00:53.5]} 67. Kf2 {[%clk 0:00:48.1]} 67... Kf5 {[%clk
0:00:55.1]} 68. Qg7 {[%clk 0:00:47.6]} 68... Qc2+ {[%clk 0:00:54.5]} 69. Kf1
{[%clk 0:00:46.8]} 69... Qc4+ {[%clk 0:00:55.5]} 70. Kg2 {[%clk 0:00:46.7]}
70... Qc2+ {[%clk 0:00:56.7]} 71. Kf3 {[%clk 0:00:46.3]} 71... Qe4+ {[%clk
0:00:54.9]} 72. Kg3 {[%clk 0:00:46.3]} 72... Qe3+ {[%clk 0:00:55.9]} 73. Kg2
{[%clk 0:00:46.7]} 73... Qxc5 {[%clk 0:00:56.7]} 74. Qd7+ {[%clk 0:00:45.2]}
74... Ke5 {[%clk 0:00:57.5]} 75. Qg7+ {[%clk 0:00:45.7]} 75... Ke4 {[%clk
0:00:57.4]} 76. Qg6+ {[%clk 0:00:45.3]} 76... Kd4 {[%clk 0:00:58.9]} 77. Qf6+
{[%clk 0:00:45.9]} 77... Kc4 {[%clk 0:01:00.2]} 78. Qe6+ {[%clk 0:00:45.7]}
78... Qd5+ {[%clk 0:01:01.5]} 0-1

[Event "*** Titled Tuesday 3|2 Blitz"]
[Site "Chess.com"]
[Date "2016.07.05"]
[Round "1"]
[White "armago"]
[Black "Gajuchess"]
[Result "0-1"]
[WhiteElo "2247"]
[BlackElo "2528"]
[TimeControl "180+2"]
[EndTime "11:10:25 PDT"]
[Termination "Gajuchess won on time"]

1. d4 {[%clk 0:03:01.4]} 1... Nf6 {[%clk 0:03:00.3]} 2. c4 {[%clk 0:03:01.8]}
2... e6 {[%clk 0:03:01.5]} 3. Nc3 {[%clk 0:03:03]} 3... Bb4 {[%clk 0:03:02]} 4.
e3 {[%clk 0:03:04.1]} 4... O-O {[%clk 0:03:02.6]} 5. Bd3 {[%clk 0:03:05]} 5...
d5 {[%clk 0:03:04.1]} 6. Nf3 {[%clk 0:03:06.2]} 6... b6 {[%clk 0:03:05.2]} 7.
O-O {[%clk 0:02:58]} 7... Ba6 {[%clk 0:03:06.4]} 8. cxd5 {[%clk 0:02:54.7]} 8...
exd5 {[%clk 0:03:07.9]} 9. Bxa6 {[%clk 0:02:53]} 9... Nxa6 {[%clk 0:03:09.8]}
10. Qa4 {[%clk 0:02:53.9]} 10... Qc8 {[%clk 0:03:10.6]} 11. Ne5 {[%clk
0:02:51.6]} 11... Re8 {[%clk 0:03:06.3]} 12. Nc6 {[%clk 0:02:45.7]} 12... Bd6
{[%clk 0:03:03.8]} 13. Nb5 {[%clk 0:02:45.4]} 13... Bf8 {[%clk 0:02:56]} 14. Bd2
{[%clk 0:02:33.1]} 14... Ne4 {[%clk 0:02:56.9]} 15. Rfd1 {[%clk 0:02:31.4]}
15... Re6 {[%clk 0:02:56.6]} 16. Rac1 {[%clk 0:02:30.7]} 16... Rh6 {[%clk
0:02:47.5]} 17. Be1 {[%clk 0:02:19.6]} 17... Qb7 {[%clk 0:02:36.5]} 18. f3
{[%clk 0:02:17.7]} 18... Nd6 {[%clk 0:02:22]} 19. Nxd6 {[%clk 0:02:17.7]} 19...
Bxd6 {[%clk 0:02:22.4]} 20. Bg3 {[%clk 0:02:17.4]} 20... Re8 {[%clk 0:02:14.4]}
21. Ne5 {[%clk 0:02:09.1]} 21... b5 {[%clk 0:02:11.9]} 22. Qc2 {[%clk
0:02:02.1]} 22... Rhe6 {[%clk 0:02:09.4]} 23. Qc6 {[%clk 0:01:51.5]} 23... Qxc6
{[%clk 0:02:05.8]} 24. Rxc6 {[%clk 0:01:47.9]} 24... Nb4 {[%clk 0:02:06.4]} 25.
Rcc1 {[%clk 0:01:42.2]} 25... c5 {[%clk 0:01:42.4]} 26. a3 {[%clk 0:01:37.5]}
26... Na6 {[%clk 0:01:43.5]} 27. Nd3 {[%clk 0:01:08.7]} 27... c4 {[%clk
0:01:43.9]} 28. Bxd6 {[%clk 0:01:07]} 28... Rxd6 {[%clk 0:01:45]} 29. Nb4 {[%clk
0:01:06.5]} 29... Nxb4 {[%clk 0:01:42.7]} 30. axb4 {[%clk 0:01:07.3]} 30... Rxe3
{[%clk 0:01:44.6]} 31. Ra1 {[%clk 0:01:08]} 31... a6 {[%clk 0:01:45.7]} 32. Ra5
{[%clk 0:01:06.7]} 32... Rb3 {[%clk 0:01:44.2]} 33. Rda1 {[%clk 0:01:02.3]}
33... Rxb2 {[%clk 0:01:40.2]} 34. Rxb5 {[%clk 0:01:03]} 34... h5 {[%clk
0:01:37.1]} 35. Rba5 {[%clk 0:00:58.9]} 35... c3 {[%clk 0:01:35.8]} 36. Rc5
{[%clk 0:00:57.9]} 36... Re6 {[%clk 0:01:34.7]} 37. Rxc3 {[%clk 0:00:54]} 37...
Ree2 {[%clk 0:01:35.4]} 38. h4 {[%clk 0:00:38.9]} 38... Rxg2+ {[%clk 0:01:35.4]}
39. Kh1 {[%clk 0:00:40.6]} 39... Rh2+ {[%clk 0:01:34.9]} 40. Kg1 {[%clk
0:00:41.9]} 40... Rbg2+ {[%clk 0:01:35.3]} 41. Kf1 {[%clk 0:00:42.6]} 41... Rb2
{[%clk 0:01:30]} 42. Kg1 {[%clk 0:00:43.5]} 42... Rxh4 {[%clk 0:01:30.5]} 43.
Rxa6 {[%clk 0:00:42.2]} 43... Rxb4 {[%clk 0:01:30.9]} 44. Ra8+ {[%clk
0:00:38.1]} 44... Kh7 {[%clk 0:01:31]} 45. Ra7 {[%clk 0:00:38.5]} 45... Rf4
{[%clk 0:01:31.6]} 46. Rd3 {[%clk 0:00:37.8]} 46... Kg6 {[%clk 0:01:29.9]} 47.
Kg2 {[%clk 0:00:39]} 47... Rbxd4 {[%clk 0:01:26]} 48. Ra6+ {[%clk 0:00:40.9]}
48... f6 {[%clk 0:01:24.5]} 49. Rb3 {[%clk 0:00:42.4]} 49... Rb4 {[%clk
0:01:24.6]} 50. Rc3 {[%clk 0:00:42.7]} 50... Rfc4 {[%clk 0:01:23.3]} 51. Rd3
{[%clk 0:00:43.5]} 51... d4 {[%clk 0:01:22.9]} 52. Rd6 {[%clk 0:00:43.4]} 52...
Rc3 {[%clk 0:01:21]} 53. R6xd4 {[%clk 0:00:42.7]} 53... Rxd4 {[%clk 0:01:21.5]}
54. Rxc3 {[%clk 0:00:43.7]} 54... Kg5 {[%clk 0:01:21]} 55. Kg3 {[%clk
0:00:44.4]} 55... h4+ {[%clk 0:01:20.8]} 56. Kh3 {[%clk 0:00:45.7]} 56... f5
{[%clk 0:01:21.7]} 57. Rb3 {[%clk 0:00:45]} 57... g6 {[%clk 0:01:22.7]} 58. Ra3
{[%clk 0:00:46]} 58... Rd1 {[%clk 0:01:20.4]} 59. Ra4 {[%clk 0:00:45.5]} 59...
Rd3 {[%clk 0:01:13.8]} 60. Kg2 {[%clk 0:00:46]} 60... Kh5 {[%clk 0:01:04.8]} 61.
Rb4 {[%clk 0:00:45.4]} 61... g5 {[%clk 0:01:01.2]} 62. Rb5 {[%clk 0:00:46.7]}
62... f4 {[%clk 0:01:01.5]} 63. Rb4 {[%clk 0:00:46.9]} 63... h3+ {[%clk
0:01:00.3]} 64. Kh2 {[%clk 0:00:45.7]} 64... Kh4 {[%clk 0:01:00.3]} 65. Rb8
{[%clk 0:00:44.8]} 65... Rd2+ {[%clk 0:01:00.5]} 66. Kg1 {[%clk 0:00:45.3]}
66... Kg3 {[%clk 0:01:02.1]} 67. Rb1 {[%clk 0:00:43.8]} 67... Rg2+ {[%clk
0:01:00.2]} 68. Kh1 {[%clk 0:00:43.3]} 68... h2 {[%clk 0:01:00.9]} 0-1